bitfinex-derivatives/quotes_SOLF0:USTF0_20250516
["timestamp","ask_amount","ask_price","bid_price","bid_amount"]
[1747379197556,60.2,172.3,172.22,561.48]
[1747379197762,5.8029,172.29,172.26,5.8035]
[1747379198061,60.2,172.3,172.22,561.48]
[1747379198249,60.2,172.3,172.22,60.02]
[1747379198451,5.804,172.26,172.23,5.8046]
[1747379198652,5.804,172.26,172.2,129.12349341]
[1747379199272,5.8036,172.27,172.24,5.8043]
[1747379199458,60.2,172.3,172.2,129.12349341]
[1747379199867,5.8035,172.27,172.24,5.8043]
[1747379200267,5.8035,172.27,172.2,129.12349341]
[1747379201562,5.8032,172.28,172.2,129.12349341]
[1747379201964,5.8035,172.27,172.2,129.12349341]
[1747379202467,5.8035,172.27,172.24,5.8042]
[1747379203267,5.8035,172.27,172.25,5.804]
[1747379203471,5.8032,172.28,172.2,129.12349341]
[1747379203665,60.16,172.3,172.2,129.12349341]
[1747379203862,60.16,172.3,172.27,5.8032]
[1747379204159,5.8028,172.29,172.27,5.8032]
[1747379204357,60.16,172.3,172.2,129.12349341]
[1747379205163,5.8033,172.28,172.2,129.12349341]
[1747379205569,60.16,172.3,172.2,129.12349341]
[1747379206469,5.8024,172.3,172.2,129.12349341]
[1747379206659,60.04,172.34,172.2,151.64507759]
[1747379206866,60.1,172.33,172.2,151.64507759]
[1747379207170,5.8018,172.32,172.29,5.8025]
[1747379207370,5.8018,172.32,172.25,60.04]
[1747379207571,5.8018,172.32,172.29,5.8025]
[1747379209572,5.8022,172.31,172.29,5.8025]
[1747379210076,5.8022,172.31,172.28,5.803]
[1747379210269,60.1,172.33,172.23,60.04]
[1747379210667,5.8035,172.27,172.25,5.8039]
[1747379211374,5.8032,172.28,172.25,5.8039]
[1747379211571,60.02,172.29,172.25,5.8039]
[1747379211774,60.02,172.29,172.26,5.8037]
[1747379212176,60.02,172.29,172.21,68.7646016]
[1747379212476,5.8022,172.31,172.21,68.7646016]
[1747379212677,59.96,172.32,172.21,68.7646016]
[1747379212878,5.8027,172.3,172.27,5.8032]
[1747379213270,59.96,172.32,172.27,5.8032]
[1747379213677,59.96,172.32,172.28,5.8031]
[1747379214178,5.8021,172.31,172.28,5.8031]
[1747379214679,5.8024,172.3,172.28,5.8031]
[1747379215079,59.96,172.32,172.28,5.8031]
[1747379215281,5.8024,172.3,172.28,5.8031]
[1747379215480,5.8024,172.3,172.27,5.8033]
[1747379215774,5.8022,172.31,172.22,60.02]
[1747379215980,59.96,172.32,172.22,60.02]
[1747379216476,5.8025,172.3,172.27,5.8032]
[1747379216671,59.96,172.32,172.27,5.8032]
[1747379216872,5.803,172.29,172.26,5.8037]
[1747379217276,5.803,172.29,172.22,60.02]
[1747379217476,5.8031,172.28,172.26,5.8036]
[1747379217675,59.96,172.32,172.22,60.02]
[1747379218178,5.8029,172.29,172.27,5.8032]
[1747379220074,5.8031,172.28,172.26,5.8036]
[1747379220474,5.8036,172.27,172.24,5.8042]
[1747379220780,59.96,172.32,172.21,8.7246016]
[1747379220981,59.9,172.3,172.21,61.8039]
[1747379221185,59.9,172.3,172.23,5.8048]
[1747379221377,59.9,172.3,172.21,61.8039]
[1747379221682,5.8036,172.27,172.24,5.8042]
[1747379221886,59.86,172.28,172.21,61.8039]
[1747379222279,5.804,172.26,172.23,5.8046]
[1747379222485,59.86,172.28,172.21,1.9039]
[1747379222881,5.8047,172.24,172.21,7.7093]
[1747379223186,59.86,172.28,172.2,1.8431]
[1747379223373,5.8054,172.22,172.2,1.8431]
[1747379223577,59.94,172.23,172.2,1.8431]
[1747379223883,5.806,172.2,172.17,65.7067]
[1747379224083,5.806,172.2,172.17,5.8067]
[1747379224585,5.8056,172.21,172.18,5.8064]
[1747379224785,59.94,172.23,172.15,1.9828]
[1747379225289,5.8057,172.21,172.18,5.8064]
[1747379225589,59.94,172.23,172.18,5.8064]
[1747379225888,59.94,172.23,172.17,5.8067]
[1747379226186,59.9,172.22,172.15,1.9828]
[1747379226382,59.9,172.22,172.14,5.8075]
[1747379226575,59.9,172.22,172.1,5.7942]
[1747379227490,59.9,172.22,172.13,5.8079]
[1747379227886,59.9,172.22,172.1,5.7942]
[1747379228089,5.807,172.17,172.14,5.8076]
[1747379228588,119.94,172.18,172.1,5.7942]
[1747379228783,119.94,172.18,172.11,5.8085]
[1747379228982,119.94,172.18,172.06,568.2607016]
[1747379229184,119.94,172.18,172.11,5.8086]
[1747379229786,119.94,172.18,172.1,5.8091]
[1747379229787,5.8081,172.14,172.1,5.8091]
[1747379229992,60.02,172.14,172.07,2.0014]
[1747379230387,5.8082,172.13,172.09,5.8092]
[1747379230692,60.02,172.14,172.06,61.8463]
[1747379230893,5.8087,172.12,172.08,5.8097]
[1747379231187,60.02,172.14,172.06,61.8463]
[1747379231387,5.8084,172.13,172.09,5.8092]
[1747379231587,60.02,172.14,172.09,5.8092]
[1747379231891,5.8083,172.13,172.09,5.8092]
[1747379232199,60.02,172.14,172.09,5.8092]
[1747379232397,60.02,172.14,172.1,5.8091]
[1747379232599,60.02,172.14,172.06,61.8463]
[1747379233805,5.8084,172.13,172.06,61.8463]
[1747379234602,5.809,172.11,172.06,61.8463]
[1747379235297,5.809,172.11,172.08,5.8096]
[1747379235505,5.8086,172.12,172.06,61.8463]
[1747379235800,119.96,172.14,172.06,61.8463]
[1747379236100,119.96,172.14,172.08,6.8207016]
[1747379236701,119.96,172.14,172.06,68.6670016]
[1747379237605,119.96,172.14,172.1,5.809]
[1747379237903,119.96,172.14,172.06,68.6670016]
[1747379238500,5.8085,172.12,172.06,68.6670016]
[1747379238802,119.96,172.14,172.06,68.6670016]
[1747379239200,60.02,172.14,172.06,68.6670016]
[1747379239394,65.7471,172.17,172.09,6.8207016]
[1747379239599,59.94,172.17,172.09,6.8207016]
[1747379239903,60.44,172.18,172.1,59.94]
[1747379240505,5.8068,172.17,172.1,59.94]
[1747379240708,60.44,172.18,172.1,59.94]
[1747379241410,60.4,172.19,172.1,59.94]
[1747379241606,5.8075,172.15,172.13,5.8079]
[1747379241911,60.4,172.19,172.1,59.94]
[1747379242303,5.8073,172.16,172.13,5.8081]
[1747379242608,5.8073,172.16,172.1,59.94]
[1747379242809,60.4,172.19,172.1,59.94]
[1747379243707,5.8066,172.18,172.1,59.94]
[1747379244211,5.8066,172.18,172.15,5.8073]
[1747379244513,5.8066,172.18,172.1,59.94]
[1747379244806,60.42,172.19,172.1,59.94]
[1747379245114,60.42,172.19,172.12,6.8207016]
[1747379245410,60.42,172.19,172.17,5.8067]
[1747379246411,66.2264,172.19,172.16,5.807]
[1747379246914,5.8066,172.18,172.16,5.807]
[1747379247107,120.3,172.2,172.12,67.2607016]
[1747379247708,120.3,172.2,172.12,60.44]
[1747379247912,5.807,172.17,172.1,59.94]
[1747379248108,120.3,172.2,172.1,59.94]
[1747379248614,5.8064,172.19,172.15,5.8072]
[1747379248913,60.44,172.22,172.12,6.8207016]
[1747379249114,66.2451,172.22,172.19,5.8058]
[1747379249413,60.44,172.22,172.12,6.8207016]
[1747379249608,5.8056,172.21,172.18,5.8062]
[1747379250212,5.8059,172.2,172.18,5.8062]
[1747379250412,5.8059,172.2,172.17,5.8067]
[1747379251014,5.8062,172.19,172.17,5.8067]
[1747379251615,5.8059,172.2,172.18,5.8064]
[1747379251815,60.42,172.21,172.18,5.8064]
[1747379252013,60.42,172.21,172.13,60.42]
[1747379252214,5.8061,172.2,172.16,5.8068]
[1747379253017,5.8061,172.19,172.16,5.8068]
[1747379253215,60.42,172.21,172.17,5.8066]
[1747379253417,5.8064,172.19,172.12,6.8207016]
[1747379253622,5.8064,172.19,172.12,67.2407016]
[1747379253919,5.8064,172.19,172.16,5.8071]
[1747379254320,5.8059,172.2,172.17,5.8068]
[1747379254631,5.8059,172.2,172.12,67.2407016]
[1747379254822,60.42,172.21,172.18,5.8062]
[1747379255022,66.2257,172.21,172.18,5.8062]
[1747379255216,60.42,172.21,172.12,67.2407016]
[1747379255411,5.8061,172.2,172.17,5.8066]
[1747379255616,60.42,172.21,172.12,67.2407016]
[1747379255815,60.42,172.21,172.1,60.42]
[1747379256021,5.8071,172.17,172.1,60.42]
[1747379256524,5.8071,172.17,172.14,5.8078]
[1747379257123,60.22,172.17,172.09,6.8207016]
[1747379257327,60.22,172.17,172.09,60.42]
[1747379257523,60.22,172.17,172.06,8.7470016]
[1747379257730,60.22,172.17,172.11,5.8086]
[1747379257923,5.8081,172.14,172.11,5.8086]
[1747379258922,5.8081,172.14,172.12,5.8085]
[1747379259126,5.8076,172.15,172.07,60.42]
[1747379259725,60.22,172.17,172.11,5.8087]
[1747379260022,60.22,172.17,172.07,60.42]
[1747379260423,60.22,172.17,172.02,11.6236]
[1747379260625,60.22,172.17,172.04,6.8207016]
[1747379261314,5.8091,172.11,172.04,67.2407016]
[1747379262024,5.8094,172.1,172.04,67.2407016]
[1747379262525,5.8094,172.1,172.07,5.8101]
[1747379262928,5.8095,172.09,172.04,67.2407016]
[1747379263227,5.8095,172.09,172.06,5.8103]
[1747379263722,5.8093,172.1,172.07,5.8101]
[1747379264524,60.22,172.12,172.04,67.2407016]
[1747379265035,5.8093,172.1,172.07,5.8099]
[1747379265534,60.22,172.12,172.04,67.2407016]
[1747379266330,5.809,172.11,172.08,5.8096]
[1747379266531,60.22,172.12,172.04,67.2407016]
[1747379267732,5.809,172.11,172.08,5.8096]
[1747379267923,60.22,172.12,172.04,67.2407016]
[1747379268327,60.22,172.12,171.99,6.8207016]
[1747379268519,60.22,172.12,172.0,120.6]
[1747379268724,60.22,172.12,172.01,60.44]
[1747379269331,60.22,172.12,171.99,6.8207016]
[1747379269524,60.22,172.12,172.0,120.58]
[1747379269723,60.22,172.12,172.0,60.44]
[1747379270432,60.22,172.12,172.05,5.8108]
[1747379270627,60.22,172.12,171.99,6.8207016]
[1747379270824,60.22,172.12,172.0,60.44]
[1747379271025,5.8104,172.07,172.04,5.811]
[1747379271328,60.1,172.08,172.0,60.44]
[1747379271522,120.54,172.07,172.0,60.44]
[1747379271729,120.54,172.07,172.01,5.8122]
[1747379272727,5.8114,172.04,172.01,5.8122]
[1747379272926,120.54,172.07,172.01,5.8122]
[1747379273239,5.8117,172.03,172.0,5.8124]
[1747379273432,120.54,172.07,172.0,5.8124]
[1747379273828,5.8118,172.03,172.0,5.8124]
[1747379274126,65.8718,172.03,172.0,5.8124]
[1747379274533,5.812,172.02,171.99,5.8127]
[1747379274734,60.06,172.03,171.95,60.46]
[1747379275030,60.46,172.02,171.92,60.46]
[1747379275227,60.46,172.02,171.91,60.46]
[1747379276128,5.8128,172.0,171.91,60.46]
[1747379276333,60.34,171.99,171.91,60.46]
[1747379277428,5.8138,171.97,171.94,5.8143]
[1747379277628,5.8138,171.97,171.91,60.46]
[1747379278034,60.34,171.99,171.91,60.46]
[1747379278839,60.34,171.99,171.91,67.2807016]
[1747379279433,60.34,171.99,171.98,5.8132]
[1747379279634,60.46,172.02,171.91,67.2807016]
[1747379279933,126.8921,172.02,171.99,5.8126]
[1747379280230,121.08,172.02,171.91,6.8207016]
[1747379280431,121.08,172.02,171.94,60.62]
[1747379280631,127.9007016,172.02,171.82,519.6554]
[1747379280932,127.9007016,172.02,171.87,6.8207016]
[1747379281125,5.8141,171.96,171.91,5.8155]
[1747379281328,67.3807016,171.96,171.81,6.8207016]
[1747379281532,67.3807016,171.96,171.8,128.0007016]
[1747379281834,67.3807016,171.96,171.8,6.8207016]
[1747379282038,6.8207016,171.93,171.78,60.62]
[1747379282337,5.8176,171.86,171.81,5.8188]
[1747379282531,60.66,171.87,171.81,5.8188]
[1747379283040,5.8175,171.86,171.81,5.8188]
[1747379283629,5.8175,171.86,171.78,121.28]
[1747379283835,5.8177,171.85,171.78,121.24]
[1747379284633,66.4772,171.87,171.78,121.24]
[1747379284834,60.66,171.87,171.68,60.49243909]
[1747379285034,60.66,171.87,171.68,131.0980587]
[1747379285233,60.66,171.87,171.68,120.11945661]
[1747379285541,10.97860209,171.85,171.73,5.8216]
[1747379285737,60.64,171.84,171.73,5.8216]
[1747379285939,60.64,171.84,171.68,120.11945661]
[1747379285940,60.66,171.83,171.68,120.11945661]
[1747379286131,60.66,171.83,171.73,5.8216]
[1747379286330,60.66,171.83,171.69,60.66]
[1747379286535,60.66,171.83,171.69,60.64]
[1747379286732,5.8208,171.76,171.69,60.64]
[1747379287135,5.8206,171.77,171.73,5.8214]
[1747379287334,121.36,171.78,171.69,60.64]
[1747379288643,60.72,171.78,171.69,60.64]
[1747379288833,121.32,171.81,171.69,60.64]
[1747379289031,127.139,171.81,171.76,5.8203]
[1747379289337,127.139,171.81,171.72,60.74]
[1747379289841,121.32,171.81,171.64,11.649]
[1747379290044,121.32,171.81,171.65,121.36]
[1747379290944,121.32,171.81,171.68,10.97860209]
[1747379291243,121.32,171.81,171.69,121.42]
[1747379291742,5.8193,171.8,171.69,121.42]
[1747379291945,5.8193,171.8,171.7,121.4]
[1747379292138,121.32,171.81,171.7,121.4]
[1747379292944,5.8198,171.79,171.75,5.8208]
[1747379293137,5.8198,171.79,171.7,121.4]
[1747379293338,121.32,171.81,171.7,121.4]
[1747379293538,5.8202,171.78,171.73,5.8214]
[1747379293841,5.8202,171.78,171.7,60.68]
[1747379294946,5.8202,171.78,171.74,5.8213]
[1747379295241,60.68,171.77,171.63,10.97860209]
[1747379295440,121.36,171.77,171.7,5.8225]
[1747379295632,5.8216,171.74,171.7,5.8225]
[1747379295833,121.36,171.77,171.66,60.68]
[1747379296038,5.8216,171.74,171.66,60.68]
[1747379296345,121.36,171.77,171.66,60.68]
[1747379296634,121.36,171.77,171.69,5.8227]
[1747379296833,5.8216,171.74,171.66,60.78]
[1747379297037,121.36,171.77,171.65,121.48]
[1747379297747,121.36,171.77,171.59,10.97860209]
[1747379297947,5.8226,171.71,171.67,5.8234]
[1747379298948,5.8221,171.72,171.68,5.8234]
[1747379299148,121.46,171.73,171.58,11.653]
[1747379299445,121.46,171.73,171.59,60.7]
[1747379299747,121.46,171.73,171.6,10.97860209]
[1747379300046,127.282,171.73,171.69,5.8229]
[1747379300851,121.46,171.73,171.7,5.8227]
[1747379301052,60.76,171.73,171.66,121.48]
[1747379302041,60.76,171.73,171.7,5.8226]
[1747379302540,60.76,171.73,171.66,121.48]
[1747379302541,60.76,171.73,171.71,5.8221]
[1747379302740,5.8211,171.75,171.71,5.8221]
[1747379303449,5.8214,171.74,171.71,5.8221]
[1747379303951,121.46,171.76,171.66,121.48]
[1747379304452,5.8215,171.74,171.7,5.8225]
[1747379304653,5.8215,171.74,171.66,121.48]
[1747379304854,121.46,171.76,171.66,121.48]
[1747379305155,5.8211,171.75,171.71,5.8221]
[1747379306257,60.72,171.79,171.71,60.78]
[1747379306746,66.5399,171.79,171.75,5.8209]
[1747379307254,60.72,171.79,171.74,5.8212]
[1747379307651,60.72,171.79,171.71,60.78]
[1747379307952,5.8201,171.78,171.71,60.78]
[1747379308451,66.5397,171.79,171.75,5.8208]
[1747379309152,5.82,171.78,171.75,5.8208]
[1747379310254,5.8205,171.77,171.74,5.8212]
[1747379310555,60.72,171.79,171.74,5.8212]
[1747379310766,60.72,171.79,171.71,60.78]
[1747379311352,66.5399,171.79,171.75,5.8208]
[1747379311854,5.8204,171.77,171.74,5.8212]
[1747379312059,60.72,171.79,171.71,60.78]
[1747379312455,5.8201,171.78,171.75,5.8209]
[1747379312661,60.72,171.79,171.71,60.78]
[1747379313057,60.72,171.79,171.72,60.72]
[1747379313058,66.5398,171.79,171.72,60.72]
[1747379313559,66.5398,171.79,171.75,5.8207]
[1747379313854,66.5398,171.79,171.72,60.72]
[1747379314055,66.5398,171.79,171.75,5.8207]
[1747379314250,66.5398,171.79,171.72,60.72]
[1747379314561,66.5398,171.79,171.75,5.8208]
[1747379315163,5.8201,171.78,171.75,5.8208]
[1747379315365,5.8201,171.78,171.71,60.78]
[1747379315366,60.72,171.79,171.68,6.86589122]
[1747379315656,5.8209,171.76,171.69,121.34]
[1747379315959,5.8209,171.76,171.72,5.8218]
[1747379316758,5.8209,171.76,171.73,5.8216]
[1747379316959,5.8205,171.77,171.69,121.34]
[1747379318061,5.8205,171.77,171.69,121.3]
[1747379318265,5.8205,171.77,171.73,5.8214]
[1747379319060,5.8208,171.76,171.73,5.8214]
[1747379320162,5.8212,171.75,171.71,5.8222]
[1747379320356,5.8212,171.75,171.69,60.72]
[1747379320760,5.8212,171.75,171.68,6.86589122]
[1747379320959,5.8212,171.75,171.69,60.72]
[1747379321662,5.8216,171.74,171.71,5.8222]
[1747379321854,60.46,171.77,171.68,60.72]
[1747379322359,5.8216,171.74,171.68,60.72]
[1747379322556,60.72,171.75,171.63,503.04]
[1747379322861,5.8227,171.7,171.66,5.8238]
[1747379323358,5.8227,171.7,171.63,503.04]
[1747379323359,60.72,171.71,171.63,5.8248]
[1747379323762,60.72,171.71,171.61,60.72]
[1747379324360,5.8237,171.67,171.64,5.8245]
[1747379324553,60.74,171.69,171.61,60.72]
[1747379324753,60.74,171.69,171.58,6.86589122]
[1747379324957,5.8236,171.68,171.65,5.8242]
[1747379325156,60.74,171.69,171.59,121.52]
[1747379325360,5.8235,171.68,171.64,5.8244]
[1747379325661,5.8235,171.68,171.59,121.52]
[1747379325960,5.8235,171.68,171.64,5.8245]
[1747379326559,60.72,171.71,171.63,60.74]
[1747379327761,5.823,171.69,171.65,5.8241]
[1747379327957,60.72,171.71,171.63,60.74]
[1747379328359,5.8228,171.7,171.66,5.8238]
[1747379328558,5.8228,171.7,171.63,60.74]
[1747379328763,5.8228,171.7,171.66,5.8238]
[1747379328961,66.5425,171.71,171.63,60.74]
[1747379329162,60.72,171.71,171.63,60.74]
[1747379329958,5.8227,171.7,171.63,60.74]
[1747379330461,5.8227,171.7,171.66,5.8238]
[1747379331664,60.72,171.71,171.63,60.74]
[1747379332161,60.72,171.71,171.6,121.64]
[1747379332458,60.72,171.71,171.64,5.8246]
[1747379332758,60.72,171.71,171.6,60.74]
[1747379332962,5.8236,171.68,171.65,5.8242]
[1747379333163,60.84,171.68,171.65,5.8242]
[1747379334163,66.6635,171.68,171.65,5.8242]
[1747379334864,5.8237,171.67,171.65,5.8242]
[1747379335066,60.84,171.68,171.65,5.8242]
[1747379335460,121.48,171.71,171.6,60.74]
[1747379335669,61.92,171.73,171.64,6.86589122]
[1747379336064,61.92,171.73,171.66,5.824]
[1747379336757,61.92,171.73,171.64,6.86589122]
[1747379336961,61.92,171.73,171.61,64.4762]
[1747379337267,61.92,171.73,171.61,3.7362]
[1747379337468,5.8238,171.67,171.63,5.8248]
[1747379337769,62.12,171.68,171.63,5.8248]
[1747379338468,5.8243,171.66,171.62,5.8253]
[1747379338670,62.12,171.68,171.62,5.8253]
[1747379338870,62.12,171.68,171.6,60.74]
[1747379339063,62.12,171.68,171.61,5.8256]
[1747379339868,5.8246,171.65,171.61,5.8256]
[1747379340467,5.8246,171.65,171.62,5.8254]
[1747379340773,5.8248,171.64,171.6,60.74]
[1747379340957,5.8248,171.64,171.6,5.8258]
[1747379341363,62.12,171.68,171.57,62.0]
[1747379341568,62.12,171.68,171.58,5.8266]
[1747379341860,5.8256,171.62,171.58,5.8266]
[1747379342067,5.8256,171.62,171.57,62.0]
[1747379342266,61.98,171.67,171.56,3.7362]
[1747379342465,61.98,171.67,171.58,130.84589122]
[1747379342859,61.98,171.67,171.64,5.8245]
[1747379343363,61.98,171.67,171.65,5.8243]
[1747379343969,67.8037,171.67,171.58,130.84589122]
[1747379344564,67.8037,171.67,171.63,5.8248]
[1747379344971,5.824,171.66,171.63,5.8248]
[1747379345273,61.98,171.67,171.58,130.84589122]
[1747379345471,5.8242,171.66,171.58,68.86589122]
[1747379345773,5.8242,171.66,171.62,5.8252]
[1747379346473,5.8245,171.65,171.62,5.8252]
[1747379346678,61.98,171.67,171.62,5.8252]
[1747379346977,5.8243,171.66,171.62,5.8252]
[1747379347172,5.8243,171.66,171.63,5.8251]
[1747379348277,5.8243,171.66,171.58,68.86589122]
[1747379348278,5.8243,171.66,171.62,5.8253]
[1747379348472,5.8243,171.66,171.58,68.86589122]
[1747379348872,5.8243,171.66,171.63,5.825]
[1747379349278,5.8245,171.65,171.58,68.86589122]
[1747379349473,61.98,171.67,171.62,5.8252]
[1747379349674,61.98,171.67,171.58,68.86589122]
[1747379349874,61.98,171.67,171.65,5.8243]
[1747379350779,62.0,171.68,171.61,6.86589122]
[1747379350980,61.76,171.7,171.61,6.86589122]
[1747379351172,61.76,171.7,171.62,62.0]
[1747379351578,61.76,171.7,171.68,5.8233]
[1747379353080,67.5828,171.7,171.67,5.8236]
[1747379353282,61.76,171.7,171.62,62.0]
[1747379353675,61.76,171.7,171.64,5.8245]
[1747379353979,5.8236,171.68,171.61,68.86589122]
[1747379354276,5.8236,171.68,171.64,5.8245]
[1747379355171,61.76,171.7,171.63,5.8248]
[1747379355375,61.76,171.7,171.61,68.86589122]
[1747379355582,61.76,171.7,171.61,6.86589122]
[1747379356284,5.8239,171.67,171.61,6.86589122]
[1747379356582,61.76,171.7,171.61,6.86589122]
[1747379357392,5.8239,171.67,171.64,5.8246]
[1747379358486,5.8235,171.68,171.65,5.8242]
[1747379358989,61.76,171.7,171.66,5.8237]
[1747379359492,67.583,171.7,171.66,5.8237]
[1747379359694,123.52,171.71,171.66,5.8237]
[1747379360089,5.8229,171.7,171.66,5.8237]
[1747379360389,123.52,171.71,171.66,5.8237]
[1747379360684,62.0,171.71,171.66,5.8237]
[1747379360989,5.8231,171.69,171.66,5.8237]
[1747379362389,5.8234,171.68,171.65,5.8242]
[1747379362594,123.5,171.71,171.61,6.86589122]
[1747379362892,123.5,171.71,171.6,62.0]
[1747379363189,5.8239,171.67,171.64,5.8246]
[1747379363380,123.5,171.71,171.6,62.0]
[1747379363780,123.5,171.71,171.61,6.86589122]
[1747379364393,5.8227,171.7,171.67,5.8236]
[1747379365292,5.8231,171.69,171.66,5.8239]
[1747379366689,5.8227,171.7,171.67,5.8236]
[1747379367190,129.3225,171.71,171.67,5.8236]
[1747379367392,62.0,171.71,171.64,62.0]
[1747379367891,62.0,171.71,171.64,63.8499]
[1747379368493,62.0,171.71,171.65,1.8631]
[1747379368685,61.52,171.72,171.69,5.8228]
[1747379369292,61.46,171.74,171.69,5.8228]
[1747379370196,5.8222,171.72,171.69,5.8228]
[1747379370395,5.8222,171.72,171.68,5.8233]
[1747379371292,5.8224,171.71,171.68,5.8233]
[1747379373002,5.8224,171.71,171.69,5.823]
[1747379373204,5.8224,171.71,171.65,1.8631]
[1747379373503,5.8224,171.71,171.68,5.8232]
[1747379375605,5.8222,171.72,171.69,5.823]
[1747379376094,5.8224,171.71,171.68,5.8232]
[1747379376294,5.8224,171.71,171.65,1.8631]
[1747379376495,5.8224,171.71,171.68,5.8232]
[1747379380807,5.8221,171.72,171.69,5.823]
[1747379383606,5.8224,171.71,171.69,5.823]
[1747379384910,5.8222,171.72,171.69,5.8227]
[1747379386014,62.0,171.75,171.65,1.8631]
[1747379386213,62.0,171.75,171.67,6.86589122]
[1747379386408,61.04,171.77,171.68,63.328]
[1747379386604,61.08,171.8,171.7,6.86589122]
[1747379386810,61.48,171.81,171.73,6.86589122]
[1747379387010,67.2991,171.81,171.78,5.8197]
[1747379387214,61.48,171.81,171.74,1.855]
[1747379387414,61.48,171.84,171.74,1.855]
[1747379387615,5.8187,171.82,171.74,1.855]
[1747379387812,61.04,171.83,171.74,1.855]
[1747379388218,61.04,171.83,171.75,5.8209]
[1747379388414,61.04,171.83,171.74,1.855]
[1747379389017,61.04,171.83,171.76,5.8205]
[1747379389916,5.8197,171.79,171.76,5.8205]
[1747379390218,61.06,171.82,171.75,5.8209]
[1747379390412,61.06,171.82,171.74,1.855]
[1747379390606,5.821,171.76,171.73,5.8215]
[1747379391309,5.821,171.76,171.74,5.8213]
[1747379392216,5.821,171.76,171.73,5.8216]
[1747379392920,5.8203,171.77,171.74,5.8213]
[1747379393718,61.46,171.8,171.72,1.8376]
[1747379393918,61.46,171.8,171.73,6.86589122]
[1747379394223,5.8188,171.82,171.79,5.8195]
[1747379394422,61.46,171.84,171.74,61.46]
[1747379394623,61.46,171.84,171.75,1.9819]
[1747379394923,5.8186,171.83,171.79,5.8194]
[1747379395322,61.46,171.84,171.76,1.9199]
[1747379395516,5.8189,171.82,171.76,1.9199]
[1747379395716,122.38,171.84,171.76,1.9199]
[1747379396223,5.819,171.81,171.77,5.8202]
[1747379396920,5.8194,171.8,171.76,1.9199]
[1747379397125,122.36,171.84,171.75,1.9819]
[1747379397324,5.8209,171.76,171.73,61.46]
[1747379397927,122.38,171.8,171.7,61.46]
[1747379399029,122.38,171.8,171.7,68.32589122]
[1747379399224,60.92,171.8,171.72,6.86589122]
[1747379399421,60.92,171.8,171.7,61.46]
[1747379399625,61.46,171.79,171.7,61.46]
[1747379400030,5.8217,171.73,171.7,61.46]
[1747379400219,61.46,171.79,171.69,1.8803]
[1747379400424,61.46,171.79,171.68,61.46]
[1747379401324,5.8217,171.73,171.68,61.46]
[1747379401524,62.6,171.76,171.68,61.46]
[1747379401925,5.8214,171.74,171.7,5.8226]
[1747379402126,62.6,171.76,171.67,66.5454]
[1747379402326,5.8222,171.72,171.68,5.8232]
[1747379402532,5.8222,171.72,171.67,66.5454]